bitfinex/quotes_SOLUSD_20240705
["timestamp","ask_amount","ask_price","bid_price","bid_amount"]
[1720188925048,15.0,132.05,132.01,26.5125]
[1720188925356,7.89806482,132.06,132.03,18.9346]
[1720188925544,15.0,132.07,132.04,7.573]
[1720188925741,15.0754,132.11,132.05,18.9319]
[1720188926062,7.89735323,132.11,132.01,22.6807]
[1720188926361,22.57,132.1,132.05,7.5727]
[1720188926657,7.5707,132.09,132.04,26.5057]
[1720188926858,7.5707,132.09,132.04,26.5054]
[1720188927036,15.0,132.1,132.06,7.5722]
[1720188927234,15.0,132.1,132.06,18.9303]
[1720188927441,15.46695323,132.11,132.06,26.5023]
[1720188927648,6.1371,132.2,132.08,100.0]
[1720188927856,6.1371,132.2,132.16,7.5663]
[1720188927857,15.0,132.19,132.16,7.5663]
[1720188928050,15.0,132.19,132.1,100.0]
[1720188928051,22.5648,132.19,132.1,22.79]
[1720188928381,22.5665,132.17,132.12,26.4897]
[1720188928672,15.0,132.15,132.06,425.1602]
[1720188928831,15.0,132.15,132.03,366.0476]
[1720188928832,15.0,132.13,132.03,6.1476]
[1720188929145,15.0,132.09,132.06,7.572]
[1720188929532,22.5709,132.09,132.04,7.573]
[1720188929758,15.0,132.07,132.04,7.573]
[1720188929949,7.5709,132.09,132.05,7.5728]
[1720188929950,15.0,132.09,132.05,7.5728]
[1720188930260,15.0,132.09,132.06,7.5723]
[1720188930757,15.0,132.09,132.05,7.5727]
[1720188930967,7.5716,132.08,132.03,7.5736]
[1720188931260,7.5716,132.08,132.04,7.5734]
[1720188931454,7.5713,132.08,132.03,26.5085]
[1720188931652,15.0,132.04,132.0,18.939]
[1720188931861,15.0,132.07,131.99,6.1476]
[1720188932042,20.17,132.06,132.0,7.5756]
[1720188932245,22.5729,132.05,132.0,7.5756]
[1720188932638,15.0,132.05,132.01,7.5751]
[1720188933054,15.0,132.05,131.99,18.9401]
[1720188933269,20.17,132.06,131.84,38.1743022]
[1720188933270,15.0,132.01,131.92,22.96771639]
[1720188933465,15.0,131.99,131.92,18.9504]
[1720188933654,15.0,131.97,131.92,18.9504]
[1720188933869,15.0,131.97,131.93,7.5795]
[1720188934160,15.0,131.97,131.92,18.9504]
[1720188934356,15.0,131.95,131.92,18.9504]
[1720188934750,15.0,131.95,131.92,26.5307]
[1720188934943,22.5776,131.97,131.92,26.5307]
[1720188935144,22.5775,131.97,131.92,26.5305]
[1720188935538,15.0,131.97,131.93,7.5797]
[1720188936669,15.0,131.97,131.92,26.5305]
[1720188936864,22.5775,131.97,131.92,26.5305]
[1720188937172,15.0,131.97,131.91,0.1]
[1720188937467,15.0,131.95,131.91,7.6805]
[1720188937834,7.5803,131.92,131.91,0.1]
[1720188938034,22.5803,131.92,131.91,0.1]
[1720188938272,15.0,131.9,131.86,18.9592]
[1720188938449,7.5815,131.9,131.86,18.9592]
[1720188939075,22.581,131.91,131.86,26.5429]
[1720188939236,15.0,131.91,131.86,18.9592]
[1720188939439,22.89339279,131.91,131.86,18.9592]
[1720188939637,30.47469279,131.91,131.86,26.5429]
[1720188940563,22.89339279,131.91,131.84,8.4491939]
[1720188940764,22.5824,131.89,131.84,8.4491939]
[1720188941042,22.5824,131.89,131.84,0.8646939]
[1720188941349,15.0,131.87,131.84,0.8646939]
[1720188942141,7.5833,131.87,131.84,0.8646939]
[1720188942356,22.5827,131.88,131.84,0.8646939]
[1720188942760,15.0,131.88,131.84,0.8646939]
[1720188943144,15.0,131.88,131.84,8.4493939]
[1720188943452,7.5843,131.85,131.84,0.8646939]
[1720188943765,7.5843,131.85,131.84,0.18826494]
[1720188944360,15.0,131.86,131.81,0.1]
[1720188944361,22.5861,131.82,131.81,0.1]
[1720188944555,42.5861,131.82,131.81,0.1]
[1720188944877,15.0,131.78,131.74,18.9765]
[1720188945046,15.0,131.78,131.71,0.9646939]
[1720188945451,15.0,131.78,131.72,7.5916]
[1720188945667,22.5884,131.78,131.73,7.591]
[1720188945875,15.0,131.8,131.72,18.979]
[1720188946082,15.0,131.8,131.74,18.9761]
[1720188946376,15.0,131.8,131.75,7.5897]
[1720188946549,15.0,131.78,131.74,18.9761]
[1720188946749,15.0,131.8,131.74,18.9761]
[1720188946950,30.0,131.77,131.74,26.5667]
[1720188947174,30.0,131.77,131.73,7.5908]
[1720188948257,30.0,131.77,131.74,7.5906]
[1720188948657,30.0,131.77,131.73,7.5911]
[1720188949169,30.0,131.77,131.74,7.5905]
[1720188949351,30.0,131.77,131.73,18.9777]
[1720188949757,30.0,131.77,131.73,26.5688]
[1720188949947,7.5896,131.76,131.71,0.9646939]
[1720188950153,30.0,131.75,131.71,0.9646939]
[1720188950462,30.0,131.75,131.72,7.5914]
[1720188951077,30.0,131.75,131.71,0.9646939]
[1720188951265,15.0,131.73,131.71,0.9646939]
[1720188951573,7.89207257,131.79,131.71,0.9646939]
[1720188951879,7.89207257,131.79,131.75,18.9738]
[1720188952075,15.0,131.78,131.72,18.979]
[1720188952376,15.0,131.76,131.72,18.979]
[1720188952581,15.0,131.76,131.71,0.9646939]
[1720188952749,7.5902,131.75,131.71,0.9646939]
[1720188953075,15.0,131.72,131.71,0.9646939]
[1720188953264,15.0,131.74,131.71,0.9646939]
[1720188953475,15.0,131.76,131.71,0.9646939]
[1720188953792,7.5916,131.73,131.71,0.9646939]
[1720188953972,15.0,131.74,131.71,0.9646939]
[1720188954604,15.0,131.76,131.71,0.9646939]
[1720188954884,15.0,131.78,131.71,27.5371939]
[1720188955099,15.0,131.76,131.71,0.9646939]
[1720188955307,15.0,131.73,131.71,0.9646939]
[1720188955467,22.5916,131.73,131.71,0.9646939]
[1720188955665,15.0,131.73,131.71,0.9646939]
[1720188955867,15.0,131.75,131.71,0.9646939]
[1720188956081,22.5901,131.75,131.71,0.9646939]
[1720188956564,22.5903,131.75,131.71,0.9646939]
[1720188956768,7.5908,131.74,131.71,0.9646939]
[1720188956975,15.0,131.73,131.71,0.9646939]
[1720188958265,22.5912,131.73,131.71,0.9646939]
[1720188958589,22.5914,131.73,131.71,0.9646939]
[1720188958757,7.5918,131.72,131.71,0.9646939]
[1720188958956,22.5914,131.73,131.71,0.9646939]
[1720188959157,15.0,131.73,131.71,0.9646939]
[1720188959783,22.5916,131.73,131.71,0.9646939]
[1720188959981,15.0,131.73,131.71,0.9646939]
[1720188960498,15.0,131.79,131.75,7.5897]
[1720188960672,6.2489,131.81,131.71,0.9646939]
[1720188960878,7.8994916,131.82,131.8,18.9671]
[1720188961067,7.8994916,131.82,131.73,6.1327]
[1720188961388,30.3075,131.87,131.82,7.5857]
[1720188961583,7.89333477,131.86,131.74,387.47]
[1720188961785,7.89333477,131.86,131.75,122.79]
[1720188961998,15.0,131.9,131.76,0.17]
[1720188962168,15.0,131.88,131.84,7.5845]
[1720188962366,15.0,131.88,131.78,37.9402]
[1720188962575,15.0,131.85,131.78,37.9402]
[1720188962785,15.0,131.88,131.86,7.5833]
[1720188963178,7.5814,131.91,131.86,7.5833]
[1720188963368,7.5812,131.91,131.86,7.5833]
[1720188963567,15.0,131.88,131.82,18.9641]
[1720188964478,15.0,131.88,131.85,7.5843]
[1720188964687,15.0,131.88,131.86,7.5837]
[1720188964887,7.89569487,131.9,131.8,510.09]
[1720188965067,7.89569487,131.9,131.88,18.9562]
[1720188965266,7.5798,131.93,131.88,26.5387]
[1720188965481,15.0,131.92,131.88,26.5387]
[1720188965683,15.0,131.92,131.88,18.9562]
[1720188965902,7.88878987,131.93,131.9,18.9532]
[1720188966189,7.578,131.96,131.91,7.5805]
[1720188966379,7.90105391,131.96,131.91,7.5807]
[1720188966765,15.0,131.91,131.86,18.9584]
[1720188966979,15.0,131.89,131.82,6.1625]
[1720188967189,7.5832,131.87,131.83,18.9627]
[1720188967375,7.583,131.88,131.83,26.5481]
[1720188967585,7.582,131.9,131.85,7.5843]
[1720188967889,15.0,131.91,131.87,7.5831]
[1720188968098,15.0,131.91,131.85,18.9602]
[1720188968291,7.5827,131.88,131.83,7.5853]
[1720188968596,7.5832,131.87,131.82,26.5503]
[1720188968895,15.0,131.88,131.84,7.5845]
[1720188969077,15.0,131.86,131.79,18.9684]
[1720188969275,19.1243,131.9,131.79,18.9684]
[1720188969276,15.0,131.84,131.8,7.5871]
[1720188969491,15.0,131.84,131.79,18.9684]
[1720188969492,22.5839,131.86,131.81,7.5865]
[1720188969673,7.5845,131.85,131.8,7.587]
[1720188969875,22.5849,131.84,131.8,7.587]
[1720188970269,15.0,131.83,131.8,7.587]
[1720188970482,15.0,131.83,131.76,18.9727]
[1720188970483,7.5865,131.82,131.76,18.9727]
[1720188970671,22.587,131.81,131.76,26.5617]
[1720188970875,15.0,131.81,131.74,6.3681]
[1720188971074,15.0,131.81,131.75,7.59]
[1720188971075,7.5874,131.8,131.75,7.59]
[1720188971277,15.17,131.81,131.73,18.9773]
[1720188971582,15.0,131.79,131.73,18.9773]
[1720188971781,15.0,131.79,131.75,7.59]
[1720188971992,15.0,131.79,131.71,38.9247939]
[1720188972172,15.0,131.79,131.74,18.9761]
[1720188972372,15.0,131.81,131.77,7.5889]
[1720188972567,15.0,131.83,131.72,100.0]
[1720188972791,53.29,131.86,131.71,61.7147939]
[1720188972792,15.0,131.81,131.71,61.7147939]
[1720188973101,15.0,131.84,131.79,18.9686]
[1720188973269,15.0,131.86,131.79,18.9686]
[1720188973469,15.0,131.86,131.81,7.5864]
[1720188973470,15.0,131.84,131.81,7.5864]
[1720188973693,15.0,131.86,131.83,7.5854]
[1720188973903,15.0,131.86,131.81,26.5517]
[1720188974086,7.5839,131.86,131.81,18.9656]
[1720188974399,7.5828,131.88,131.83,7.5854]
[1720188974701,15.0,131.86,131.82,7.5859]
[1720188974884,7.5832,131.87,131.82,7.5859]
[1720188975083,59.91947532,131.9,131.81,18.9656]
[1720188975084,15.0,131.88,131.81,18.9656]
[1720188975298,7.5843,131.85,131.81,18.9656]
[1720188975473,7.5844,131.85,131.8,7.5868]
[1720188975793,15.0,131.85,131.81,7.5866]
[1720188975994,15.0,131.85,131.79,7.5877]
[1720188976193,22.5861,131.82,131.77,26.56]
[1720188976399,15.0,131.84,131.77,26.5601]
[1720188976572,15.48438883,131.82,131.77,18.9712]
[1720188976897,15.48438883,131.82,131.74,406.2756]
[1720188976898,22.89808883,131.82,131.74,406.2756]
[1720188977074,7.587,131.81,131.76,7.5893]
[1720188977393,15.0,131.78,131.71,38.9247939]
[1720188977600,7.588,131.79,131.74,7.5905]
[1720188977772,15.0,131.78,131.74,7.5905]
[1720188978174,22.5874,131.8,131.75,7.5901]
[1720188978472,22.89808883,131.82,131.76,18.9736]
[1720188978673,7.89808883,131.82,131.81,7.5866]
[1720188978884,6.44200687,131.89,131.82,26.5505]
[1720188979178,33.9543,131.9,131.81,7.5864]
[1720188979179,7.5844,131.85,131.81,7.5864]
[1720188979389,22.5844,131.85,131.81,7.5864]
[1720188979979,15.0,131.83,131.79,18.9687]
[1720188980188,7.5851,131.84,131.74,60.7415]
[1720188980495,15.0,131.85,131.75,0.17]
[1720188980869,15.0,131.83,131.74,37.9515]
[1720188981076,15.0,131.85,131.79,18.9691]
[1720188981479,15.0,131.85,131.76,18.9728]
[1720188981678,15.0,131.85,131.74,37.9515]
[1720188981679,15.0,131.82,131.79,7.5874]
[1720188981899,15.0,131.84,131.8,7.5871]
[1720188982308,15.0,131.84,131.79,7.5877]
[1720188982598,7.5855,131.83,131.78,26.5586]
[1720188982900,22.5851,131.84,131.79,7.5877]
[1720188983277,22.5851,131.84,131.78,26.5587]
[1720188983278,7.5856,131.83,131.78,26.5587]
[1720188983477,15.0,131.84,131.78,26.5587]
[1720188983707,22.5862,131.82,131.78,18.9705]
[1720188983898,7.5857,131.83,131.78,26.5586]
[1720188984100,22.5853,131.84,131.79,7.5874]
[1720188984305,7.5857,131.83,131.78,26.5588]
[1720188984620,7.5871,131.81,131.76,7.5893]
[1720188984899,7.5875,131.8,131.76,7.5894]
[1720188985098,22.5868,131.81,131.76,7.5894]
[1720188985310,22.5868,131.81,131.77,7.5887]
[1720188985686,15.0,131.81,131.77,7.5887]
[1720188985885,15.0,131.81,131.77,18.9724]
[1720188986198,15.0,131.81,131.79,26.5557]
[1720188986401,15.0,131.85,131.74,60.7419]
[1720188986615,15.0,131.85,131.75,0.17]
[1720188986777,7.89962181,131.87,131.84,7.5848]
[1720188986778,22.89962181,131.87,131.84,7.5848]
[1720188986980,22.58,131.93,131.89,7.5819]
[1720188987182,7.90652026,131.91,131.85,18.96]
[1720188987409,7.5817,131.9,131.85,26.5442]
[1720188987997,15.0,131.89,131.85,26.5442]
[1720188988191,15.0,131.89,131.82,18.9643]
[1720188988508,15.0,131.89,131.81,22.79]
[1720188988710,15.0,131.89,131.86,7.5836]
[1720188988877,15.48772026,131.91,131.83,22.79]
[1720188988878,7.90652026,131.91,131.83,22.79]
[1720188989209,22.5798,131.93,131.89,7.5818]
[1720188989504,15.0,131.92,131.87,7.5828]
[1720188989685,7.90272968,131.94,131.87,18.9576]
[1720188989885,15.0,131.92,131.87,18.9576]
[1720188990102,22.5808,131.92,131.87,26.5407]
[1720188990316,22.5812,131.91,131.87,18.9576]
[1720188990612,7.90272968,131.94,131.88,7.5822]
[1720188990613,7.5802,131.93,131.88,7.5822]
[1720188990798,15.0,131.92,131.88,7.5822]
[1720188991407,7.90272968,131.94,131.89,18.9549]
[1720188991624,7.90272968,131.94,131.9,7.5814]
[1720188991934,22.90272968,131.94,131.9,7.5814]
[1720188992425,22.90272968,131.94,131.86,18.9583]
[1720188992426,15.0,131.92,131.86,18.9583]
[1720188992634,22.5805,131.92,131.87,7.5828]
[1720188992831,7.5799,131.93,131.88,18.9564]
[1720188993128,7.90272968,131.94,131.84,138.9451]
[1720188993308,7.90272968,131.94,131.9,26.5341]
[1720188993511,15.0,131.93,131.89,7.5819]
[1720188993718,22.5799,131.93,131.88,7.5824]
[1720188994327,7.5803,131.92,131.88,7.5824]
[1720188994542,7.90272968,131.94,131.93,26.5291]
[1720188994748,7.5758,132.0,131.95,7.5786]
[1720188995034,7.89580674,131.98,131.93,18.9494]
[1720188995209,7.5758,132.0,131.94,7.579]
[1720188995409,22.90140113,132.01,131.97,7.577]
[1720188995734,15.0,132.01,131.97,18.9428]
[1720188995940,15.0,132.01,131.98,7.5768]
[1720188996137,4.31253094,132.02,131.97,26.52]
[1720188996309,4.31253094,132.02,131.98,7.5765]
[1720188996508,4.31253094,132.02,132.0,7.5757]
[1720188996817,7.90146809,132.04,132.0,7.5757]
[1720188997030,7.90146809,132.04,131.99,18.9405]
[1720188997031,22.5723,132.06,132.01,7.575]
[1720188997325,14.37400948,132.07,132.01,18.9372]
[1720188997533,7.90060948,132.07,132.03,7.5739]
[1720188997735,15.0,132.06,132.03,7.5739]
[1720188997905,7.90060948,132.07,132.04,7.5733]
[1720188998105,0.1,132.09,131.99,37.879]
[1720188998326,0.1,132.09,132.07,18.9283]
[1720188998327,8.00254302,132.09,132.07,18.9283]
[1720188998630,8.00254302,132.09,132.03,6.6124]
[1720188998631,0.1,132.09,132.04,18.9333]
[1720188998943,0.1,132.09,132.08,7.5711]
[1720188999117,0.1,132.09,132.06,18.9299]
[1720188999731,0.1,132.09,132.05,7.5727]
[1720188999732,15.1,132.09,132.05,7.5727]
[1720189000037,0.1,132.09,132.05,7.5727]
[1720189000526,0.1,132.09,132.06,7.5721]
[1720189000733,22.5712,132.08,132.02,18.9358]
[1720189000916,15.0,132.08,132.0,387.3]
[1720189001123,15.0,132.08,131.96,425.1874]
[1720189001428,0.1,132.09,131.99,7.5762]
[1720189001429,7.573,132.05,131.99,7.5762]
[1720189001624,15.0,132.06,132.01,7.5751]
[1720189001831,15.0,132.06,131.96,525.1874]
[1720189001832,15.0,132.06,132.02,7.5741]
[1720189002036,15.0,132.08,132.04,7.5728]
[1720189002237,15.0,132.06,132.02,18.9357]
[1720189002530,15.0,132.06,131.96,425.1874]
[1720189002531,15.0,132.08,132.01,18.9371]
[1720189002713,15.0,132.08,132.04,7.573]
[1720189002913,15.0,132.08,132.03,18.934]
[1720189003338,15.0,132.08,132.03,26.5079]
[1720189003643,15.0,132.08,132.04,7.5733]
[1720189004138,15.0,132.08,132.03,26.5079]
[1720189004325,15.0,132.08,132.04,7.5732]
[1720189004717,22.5713,132.08,132.03,18.934]
[1720189005036,15.0,132.08,132.03,26.5078]
[1720189005225,15.0,132.08,132.03,18.934]
[1720189005840,15.0,132.08,132.04,7.5731]
[1720189006042,15.0,132.08,132.03,26.5079]
[1720189006523,22.5713,132.08,132.03,18.934]
[1720189006726,15.0,132.08,132.0,37.8779]
[1720189006932,22.5716,132.08,132.0,37.8779]
[1720189007244,15.0,132.08,132.02,18.9356]
[1720189007445,15.0,132.08,132.03,7.574]
[1720189007645,15.0,132.06,132.02,18.9356]
[1720189007940,7.6707,132.09,132.07,7.5715]
[1720189007941,0.1,132.09,132.07,7.5715]
[1720189008143,0.1,132.09,132.08,7.5711]
[1720189010133,0.1,132.09,132.04,18.9331]
[1720189010327,0.1,132.09,132.05,30.0]
[1720189010641,0.1,132.09,132.06,18.93]
[1720189010952,0.1,132.09,132.08,7.5711]
[1720189012925,0.1,132.09,132.07,7.5716]
[1720189013152,0.1,132.09,132.06,18.93]
[1720189013530,0.1,132.09,132.07,7.5716]
[1720189013731,0.1,132.09,132.08,7.5711]
[1720189013932,0.1,132.09,132.06,18.93]
[1720189014128,0.1,132.09,132.08,7.5711]
[1720189015658,0.1,132.09,132.08,30.5311]
[1720189015832,0.1,132.09,132.08,7.5711]
[1720189017355,0.1,132.09,132.08,7.7411]
[1720189018041,0.1,132.09,132.08,8.47633134]
[1720189019356,0.1,132.09,132.08,7.5711]
[1720189020056,0.1,132.09,132.08,8.1443979]
[1720189020357,0.1,132.09,132.08,8.3143979]
[1720189020960,0.1,132.09,132.08,130.5311]
[1720189021255,15.0,132.16,132.14,7.5675]
[1720189021834,0.8646939,132.17,132.1,18.9237]
[1720189021835,15.0,132.14,132.1,18.9237]
[1720189022035,15.0,132.16,132.1,18.9237]
[1720189022251,15.0,132.16,132.11,7.5692]
[1720189022559,15.0,132.16,132.12,7.5688]
[1720189022929,15.0,132.16,132.14,7.5673]
[1720189023353,0.8646939,132.17,132.14,18.9191]
[1720189023737,0.8646939,132.17,132.16,7.5665]
[1720189025169,0.8646939,132.17,132.16,107.5665]
[1720189025456,0.8646939,132.17,132.16,130.5265]
[1720189026835,0.8646939,132.17,132.16,7.5665]
[1720189027266,0.8646939,132.17,132.14,18.9191]
[1720189027558,0.8646939,132.17,132.16,7.5665]
[1720189029762,0.8646939,132.17,132.16,30.3565]
[1720189029973,0.1,132.19,132.18,64.3062]
[1720189030144,7.89686999,132.27,132.18,160.6172]
[1720189030350,30.7566,132.28,132.26,7.5608]
[1720189030655,15.7566,132.28,132.22,18.9069]
[1720189030851,15.7566,132.28,132.25,7.5614]
[1720189031061,15.7566,132.28,132.24,18.9049]
[1720189031062,6.6739,132.29,132.26,7.5607]
[1720189031257,6.6739,132.29,132.27,7.5601]
[1720189031454,15.0,132.28,132.26,18.9017]
[1720189032374,15.0,132.28,132.26,26.4624]
[1720189032566,15.0,132.28,132.23,18.9061]
[1720189032877,15.0,132.25,132.2,18.9103]
[1720189033061,15.0,132.23,132.2,18.9103]
[1720189033246,22.5616,132.25,132.2,26.4742]
[1720189033574,15.0,132.23,132.2,18.9103]
[1720189033780,15.0,132.25,132.21,7.5633]
[1720189034271,15.0,132.23,132.2,26.4743]
[1720189034482,15.0,132.21,132.12,493.4815]
[1720189034692,15.0,132.21,132.18,7.5653]
[1720189034843,22.5629,132.23,132.18,7.5653]
[1720189035047,15.0,132.21,132.16,18.9161]
[1720189035361,31.1594,132.24,132.18,18.9134]
[1720189035561,15.0,132.22,132.19,7.5647]
[1720189035768,15.0,132.22,132.2,7.5642]
[1720189035981,15.0,132.25,132.21,7.5637]
[1720189036162,15.0,132.23,132.21,7.5636]
[1720189036674,15.0,132.23,132.2,18.9101]
[1720189036889,15.0,132.23,132.21,7.5636]
[1720189037090,15.0,132.23,132.2,18.9101]
[1720189037382,15.0,132.23,132.22,7.5631]
[1720189037594,15.0,132.21,132.13,37.8389]
[1720189037761,44.20631939,132.28,132.06,10.12734485]
[1720189037762,15.0,132.17,132.14,7.5677]
[1720189037962,15.0,132.19,132.14,18.9188]
[1720189038162,6.3884,132.22,132.16,7.5665]
[1720189038163,22.5638,132.21,132.16,7.5665]
[1720189038675,15.0,132.21,132.17,7.5655]
[1720189038986,15.0,132.21,132.18,7.5651]
[1720189039167,15.0,132.21,132.19,7.5645]
[1720189039481,15.0,132.23,132.2,7.5642]
[1720189039710,21.3318,132.25,132.16,37.8313]
[1720189039890,21.3318,132.25,132.13,37.8386]
[1720189039891,15.0,132.22,132.13,37.8386]
[1720189040092,15.0,132.22,132.19,7.5648]
[1720189040263,15.0,132.22,132.2,7.564]
[1720189040674,15.0,132.22,132.18,18.9134]
[1720189040986,15.0,132.18,132.15,26.4835]
[1720189041191,15.0,132.18,132.15,18.9168]
[1720189041361,15.0,132.18,132.14,387.3]
[1720189041567,15.0,132.18,132.12,18.9212]
[1720189041769,15.0,132.18,132.15,7.567]
[1720189041984,15.0,132.2,132.16,7.5663]
[1720189042195,15.0,132.18,132.14,26.4865]
[1720189042370,15.0,132.2,132.14,18.9189]
[1720189042880,15.0,132.18,132.14,18.9189]
[1720189043062,15.0,132.18,132.16,7.5664]
[1720189043262,15.0,132.18,132.14,18.9189]
[1720189044165,15.0,132.18,132.15,7.5667]
[1720189044367,15.0,132.2,132.16,18.9161]
[1720189044912,15.0,132.2,132.17,7.5657]
[1720189045068,15.0,132.2,132.18,7.5653]
[1720189045393,22.89033898,132.22,132.19,7.5648]
[1720189045567,15.0,132.22,132.19,7.5648]
[1720189045765,15.0,132.22,132.18,18.9133]
[1720189045986,15.0,132.18,132.15,18.9171]
[1720189046191,15.0,132.18,132.15,7.5671]
[1720189046397,15.0,132.2,132.14,18.919]
[1720189046571,15.0,132.2,132.11,387.3]
[1720189046572,7.5661,132.17,132.12,7.5687]
[1720189046894,15.0,132.18,132.13,18.9206]
[1720189047105,15.0,132.2,132.15,18.9176]
[1720189047294,15.0,132.2,132.16,7.5663]
[1720189047604,15.0,132.17,132.15,7.567]
[1720189047971,15.0,132.17,132.14,18.9192]
[1720189047972,15.0,132.17,132.14,26.4867]
[1720189048184,15.0,132.15,132.13,7.5682]
[1720189048400,15.0,132.19,132.1,37.8484]
[1720189048596,0.17,132.21,132.15,26.4841]
[1720189048597,15.0,132.17,132.15,26.4841]
[1720189049176,15.0,132.17,132.16,7.5665]
[1720189049586,15.0,132.19,132.17,7.5659]
[1720189049784,15.0,132.19,132.18,7.5654]
[1720189049997,15.0,132.19,132.17,18.9149]
[1720189050587,15.0,132.19,132.18,7.5654]
[1720189051599,15.0,132.19,132.17,18.9149]
[1720189051973,15.0,132.19,132.15,7.567]
[1720189052177,15.0,132.16,132.15,7.567]
[1720189052403,15.0,132.16,132.14,18.9184]
[1720189052580,15.0,132.16,132.11,406.2223]
[1720189052780,22.5666,132.16,132.11,18.9223]
[1720189052981,22.5666,132.16,132.11,26.4916]
[1720189053187,20.0,132.15,132.09,7.5705]
[1720189053478,20.0,132.15,132.09,7.5704]
[1720189053479,7.5677,132.14,132.09,7.5704]
[1720189053678,15.0,132.13,132.1,7.5698]
[1720189053902,35.0,132.15,132.11,7.5693]
[1720189054109,35.0,132.15,132.1,18.9246]
[1720189054280,15.0,132.15,132.14,7.5677]
[1720189054480,15.0,132.15,132.14,26.487]
[1720189055595,15.0,132.17,132.16,7.5665]
[1720189056189,15.0,132.17,132.16,26.4829]
[1720189056388,15.0,132.2,132.17,7.5657]
[1720189056592,15.0,132.2,132.16,26.4827]
[1720189056994,15.0,132.2,132.17,7.5659]
[1720189057383,20.30728557,132.23,132.13,18.92]
[1720189057384,15.0,132.18,132.13,18.92]
[1720189057605,15.0,132.15,132.13,26.4881]
[1720189057906,22.565,132.19,132.14,7.5673]
[1720189058203,20.0,132.18,132.12,18.9214]
[1720189058402,15.0,132.17,132.13,7.5678]
[1720189058617,15.0,132.15,132.13,7.5681]
[1720189058909,15.0,132.15,132.12,26.4902]
[1720189059111,15.0,132.13,132.11,387.3]
[1720189059287,15.0,132.13,132.09,26.4957]
[1720189059487,15.0,132.13,132.1,7.5699]
[1720189059683,15.0,132.13,132.09,18.9253]
[1720189059889,15.0,132.11,132.09,26.4956]
[1720189060492,15.0,132.11,132.1,7.57]
[1720189061801,15.0,132.11,132.09,26.4956]
[1720189062006,15.0,132.11,132.09,18.9253]
[1720189062224,15.0,132.11,132.09,26.4958]
[1720189062708,15.0,132.13,132.1,7.57]
[1720189062888,15.0,132.13,132.11,7.5694]
[1720189063501,15.0,132.11,132.06,18.9294]
[1720189063789,15.0,132.09,132.06,26.5017]
[1720189064007,15.0,132.09,132.06,18.9294]
[1720189064288,15.0,132.07,132.06,26.5016]
[1720189065097,15.0,132.09,132.08,7.5711]
[1720189065592,15.0,132.12,132.08,7.5711]
[1720189065801,15.0,132.12,132.09,7.5701]
[1720189066004,15.0,132.1,132.09,26.4953]
[1720189066209,15.0,132.12,132.09,26.4953]
[1720189066412,15.0,132.1,132.09,18.9252]
[1720189066713,15.0,132.12,132.09,26.4957]
[1720189066900,7.5678,132.14,132.09,26.4957]